bitfinex/quotes_ETHUSD_20251019
["timestamp","ask_amount","ask_price","bid_price","bid_amount"]
[1760846213584,0.1272,3910.2,3909.7,2.5576985]
[1760846213762,0.04457794,3910.3,3909.8,0.14941147]
[1760846213963,0.04457794,3910.3,3909.9,0.4298]
[1760846214178,0.001,3910.4,3910.0,0.557]
[1760846215298,0.001,3910.4,3910.2,0.1272]
[1760846217575,0.001,3910.4,3910.2,0.557]
[1760846219203,0.001,3910.4,3910.3,0.4298]
[1760846220399,0.001,3910.4,3910.2,0.1272]
[1760846221005,0.0995,3910.3,3910.2,0.1272]
[1760846221217,0.001,3910.4,3909.6,5.00685724]
[1760846221527,0.0995,3910.3,3910.0,0.1272]
[1760846221723,0.0995,3910.2,3909.6,3.843]
[1760846222023,0.0995,3910.1,3909.7,0.1272]
[1760846222320,0.0995,3910.0,3909.7,0.1272]
[1760846222542,0.1506,3909.9,3909.7,0.1272]
[1760846222827,0.2506,3909.9,3909.7,3.9702]
[1760846223494,0.1272,3910.3,3909.7,3.9702]
[1760846223495,0.1,3910.2,3909.7,3.9702]
[1760846223694,0.1272,3910.3,3909.7,3.9702]
[1760846224520,0.1272,3910.3,3910.2,0.4822]
[1760846225728,0.2277,3910.3,3910.2,0.4822]
[1760846233938,0.1272,3910.3,3910.2,0.4822]
[1760846241450,0.2277,3910.3,3910.2,0.4822]
[1760846241747,5.38405233,3910.3,3910.2,0.4822]
[1760846241929,5.18392446,3910.3,3910.2,0.4822]
[1760846243642,5.08342446,3910.3,3910.2,0.4822]
[1760846246644,5.1280052,3910.3,3910.2,0.4822]
[1760846246857,6.9565052,3910.3,3910.2,0.4822]
[1760846247033,7.65225572,3910.3,3910.2,0.4822]
[1760846249744,1.89978074,3910.3,3910.2,0.4822]
[1760846249947,1.77258074,3910.3,3910.2,0.4822]
[1760846251873,0.04458074,3910.3,3910.2,0.4822]
[1760846253155,0.14508074,3910.3,3910.2,0.4822]
[1760846255348,0.04458074,3910.3,3910.2,0.4822]
[1760846257677,0.04458074,3910.3,3910.2,0.9409]
[1760846258082,0.04458074,3910.3,3910.2,0.4822]
[1760846261875,0.71756126,3910.3,3910.2,0.4822]
[1760846265001,0.81806126,3910.3,3910.2,0.4822]
[1760846265200,0.71756126,3910.3,3910.2,0.4822]
[1760846265401,0.81806126,3910.3,3910.2,0.4822]
[1760846266304,0.71756126,3910.3,3910.2,0.4822]
[1760846268588,0.04458074,3910.3,3910.2,0.4822]
[1760846268792,0.04458074,3910.3,3910.2,0.9409]
[1760846271596,0.04458074,3910.3,3910.2,0.4822]
[1760846273717,0.04458074,3910.3,3910.2,0.9409]
[1760846274616,0.04458074,3910.3,3910.2,0.96647413]
[1760846274923,0.001,3910.4,3910.2,1.34093036]
[1760846275123,0.001,3910.4,3910.3,0.4587]
[1760846281525,0.001,3910.4,3910.3,3.64964854]
[1760846281706,0.001,3910.4,3910.3,3.77684854]
[1760846281906,0.001,3910.4,3910.3,3.64964854]
[1760846282207,0.001,3910.4,3910.3,4.37807561]
[1760846283045,0.001,3910.4,3910.3,4.40364909]
[1760846286812,0.001,3910.4,3910.3,8.24664909]
[1760846287032,0.001,3910.4,3910.3,4.37807561]
[1760846287341,0.001,3910.4,3910.3,6.13164909]
[1760846287540,0.001,3910.4,3910.3,6.10607561]
[1760846290250,0.001,3910.4,3910.3,11.06230007]
[1760846290954,0.001,3910.4,3910.3,11.16480306]
[1760846291455,0.001,3910.4,3910.3,11.29200306]
[1760846292360,0.001,3910.4,3910.3,15.13500306]
[1760846295028,0.001,3910.4,3910.3,13.86180306]
[1760846295458,0.001,3910.4,3910.3,16.44680306]
[1760846295651,0.001,3910.4,3910.3,16.94699982]
[1760846299466,0.001,3910.4,3910.3,36.64986182]
[1760846299663,0.001,3910.4,3910.3,36.07854482]
[1760846299839,0.001,3910.4,3910.3,34.27455782]
[1760846300161,0.001,3910.4,3910.3,30.13209982]
[1760846300360,0.001,3910.4,3910.3,28.15093582]
[1760846300566,0.001,3910.4,3910.3,27.93506182]
[1760846301564,0.001,3910.4,3910.3,30.01395482]
[1760846301761,0.001,3910.8,3910.7,5.88768696]
[1760846301960,0.001,3910.8,3910.7,18.40838912]
[1760846302134,0.001,3910.8,3910.7,18.86548912]
[1760846302531,0.001,3911.2,3911.1,5.88742544]
[1760846302831,0.001,3911.2,3911.1,15.3773499]
[1760846303164,0.001,3911.2,3911.1,15.9809499]
[1760846303365,0.001,3911.2,3911.1,17.83473578]
[1760846305129,0.001,3911.2,3911.1,17.96193578]
[1760846305933,0.001,3911.2,3911.1,25.44346478]
[1760846306135,0.001,3911.2,3911.1,22.68428978]
[1760846306762,0.001,3911.2,3911.1,23.28354978]
[1760846306961,0.001,3911.2,3911.1,22.83618978]
[1760846307669,0.001,3911.2,3911.1,26.67918978]
[1760846307864,0.001,3911.2,3911.1,29.58542978]
[1760846308071,0.001,3911.2,3911.1,27.27916378]
[1760846308369,0.001,3911.2,3911.1,27.76126378]
[1760846308758,0.001,3911.2,3911.1,27.85128378]
[1760846309770,0.001,3911.2,3911.1,31.98390978]
[1760846310151,0.2455,3912.3,3912.2,3.18970653]
[1760846310347,0.2455,3912.3,3912.2,3.89149621]
[1760846314444,0.2455,3912.3,3912.2,4.13699621]
[1760846318142,0.17174723,3913.5,3912.4,0.6336]
[1760846318469,0.17174723,3913.5,3912.9,0.1272]
[1760846319056,0.2491,3913.0,3912.9,0.1272]
[1760846320743,0.1501,3913.0,3912.9,0.1272]
[1760846320940,0.1501,3913.0,3912.9,3.06015344]
[1760846321571,0.2491,3913.0,3912.9,3.06015344]
[1760846321875,0.2491,3913.0,3912.9,0.50450418]
[1760846321876,0.2501,3913.0,3912.9,0.50450418]
[1760846322069,0.2501,3913.0,3912.9,3.06015344]
[1760846322645,0.2501,3913.0,3912.9,6.90315344]
[1760846322847,0.2501,3913.0,3912.9,6.87759695]
[1760846324247,0.1511,3913.0,3912.9,6.87759695]
[1760846324442,0.001,3913.0,3912.9,6.87759695]
[1760846324668,0.001,3913.0,3912.9,7.76129695]
[1760846327384,0.001,3913.0,3912.9,6.09059695]
[1760846329459,0.001,3913.0,3912.9,6.12809695]
[1760846329664,0.1,3913.0,3912.9,6.12809695]
[1760846330596,0.001,3913.0,3912.9,6.12809695]
[1760846330787,0.1,3913.0,3912.9,6.12809695]
[1760846330983,0.1,3913.0,3912.9,4.40009695]
[1760846331194,0.1,3913.0,3912.9,3.76649695]
[1760846331389,0.001,3913.0,3912.9,3.76649695]
[1760846331785,0.001,3913.0,3912.9,3.79205344]
[1760846332798,0.001,3913.0,3912.9,4.42565344]
[1760846334094,0.001,3913.0,3912.9,4.40009695]
[1760846334297,0.1,3913.0,3912.9,4.40009695]
[1760846335001,0.001,3913.0,3912.9,4.40009695]
[1760846338178,0.1,3913.0,3912.9,8.24309695]
[1760846339400,0.001,3913.0,3912.9,8.24309695]
[1760846339897,0.001,3913.0,3912.9,5.05384769]
[1760846340206,0.1,3913.0,3912.9,4.452]
[1760846344203,0.1,3913.0,3912.9,0.609]
[1760846344506,0.001,3913.0,3912.9,0.609]
[1760846344720,0.001,3913.0,3912.9,3.16464926]
[1760846344897,0.001,3913.0,3912.9,3.79824926]
[1760846345208,0.001,3913.0,3912.9,4.44389578]
[1760846345415,0.001,3913.0,3912.9,4.54634364]
[1760846345774,0.001,3913.0,3912.9,6.27434364]
[1760846349624,0.001,3913.0,3912.9,3.08509438]
[1760846350024,0.00143156,3913.2,3912.9,6.92809438]
[1760846350234,0.00143156,3913.2,3913.0,3.843]
[1760846350524,0.099,3913.1,3913.0,3.9702]
[1760846351029,0.00143156,3913.2,3913.0,3.9702]
[1760846353143,0.00143156,3913.2,3913.1,0.02555518]
[1760846353638,0.10043156,3913.2,3913.0,3.9702]
[1760846353835,0.00143156,3913.2,3913.0,3.9702]
[1760846354224,0.00143156,3913.2,3913.1,0.02555518]
[1760846355707,0.00143156,3913.2,3913.0,3.9702]
[1760846355894,0.00143156,3913.2,3913.0,0.1272]
[1760846356296,0.00143156,3913.2,3913.1,0.02555518]
[1760846356728,0.00143156,3913.2,3913.0,0.1272]
[1760846358503,0.00143156,3913.2,3913.1,0.02555518]
[1760846358706,0.00143156,3913.2,3913.0,0.1272]
[1760846359057,0.099,3913.1,3913.0,0.1272]
[1760846359255,0.00243156,3913.2,3913.0,0.1272]
[1760846359941,0.10143156,3913.2,3913.0,0.1272]
[1760846360434,0.00243156,3913.2,3913.0,0.1272]
[1760846360607,0.00243156,3913.2,3913.0,0.79250073]
[1760846361228,0.00243156,3913.2,3913.0,0.1272]
[1760846361607,0.099,3913.1,3913.0,0.1272]
[1760846361823,0.00243156,3913.2,3913.0,0.1272]
[1760846362042,0.00243156,3913.2,3913.1,0.4548]
[1760846362333,0.00243156,3913.2,3913.1,2.55551864]
[1760846362518,0.00243156,3913.2,3913.1,3.59258429]
[1760846362716,0.00243156,3913.2,3913.1,3.74228429]
[1760846362913,0.00243156,3913.2,3913.1,1.18676565]
[1760846363118,0.00243156,3913.2,3913.1,0.73196565]
[1760846363937,0.00243156,3913.2,3913.0,0.609]
[1760846364240,0.0955315,3913.5,3913.0,0.58425468]
[1760846364405,0.001,3913.6,3913.0,0.609]
[1760846366541,0.001,3913.6,3913.0,3.6193454]
[1760846366735,0.001,3913.6,3913.1,2.76989986]
[1760846366935,0.001,3913.6,3913.4,0.1272]
[1760846367735,0.0916,3913.5,3913.0,0.79066729]
[1760846367929,0.001,3913.6,3913.2,0.1272]
[1760846368642,0.0926,3913.6,3913.2,0.1272]
[1760846372133,0.001,3913.6,3913.2,0.1272]
[1760846373619,0.0926,3913.6,3913.2,0.1272]
[1760846374757,0.001,3913.6,3913.2,0.1272]
[1760846374960,0.001,3913.6,3913.4,0.1272]
[1760846376552,0.001,3913.6,3913.4,0.5635]
[1760846377137,0.001,3913.6,3913.5,0.4363]
[1760846381562,0.001,3913.6,3913.4,0.1272]
[1760846381954,0.001,3913.6,3913.4,0.5635]
[1760846386971,0.001,3913.6,3913.5,0.4363]
[1760846391542,0.001,3913.6,3913.5,1.14965975]
[1760846391747,0.001,3913.6,3913.5,1.17521232]
[1760846393778,0.001,3913.6,3913.5,0.02555257]
[1760846393985,0.001,3913.6,3913.5,0.46185257]
[1760846395693,0.001,3913.6,3913.5,0.94365257]
[1760846396352,0.001,3913.6,3913.5,3.49891001]
[1760846396772,0.001,3913.6,3913.5,3.77261001]
[1760846397082,0.001,3913.6,3913.5,4.41812857]
[1760846398756,0.001,3913.6,3913.5,3.98182857]
[1760846399078,0.001,3913.6,3913.5,1.40101856]
[1760846399588,0.001,3913.6,3913.5,3.956276]
[1760846399750,0.001,3913.6,3913.5,1.40101856]
[1760846400087,0.001,3913.6,3913.5,3.956276]
[1760846401482,0.001,3913.6,3913.5,4.392576]
[1760846401698,0.001,3913.6,3913.5,5.026176]
[1760846402188,0.001,3913.6,3913.5,6.77972599]
[1760846402351,0.001,3913.6,3913.5,6.754176]
[1760846405664,0.001,3913.6,3913.5,5.026176]
[1760846405870,0.001,3913.6,3913.5,14.43295303]
[1760846406075,0.001,3913.6,3913.5,14.40740046]
[1760846406272,0.25723158,3915.0,3914.9,3.18794366]
[1760846406273,0.04453158,3915.0,3914.9,3.18794366]
[1760846406481,0.04453158,3915.0,3914.9,0.31879437]
[1760846406680,0.14613158,3915.0,3914.1,1.728]
[1760846406880,0.311,3914.9,3913.7,1.728]
[1760846407083,0.2142,3914.8,3913.9,2.55498152]
[1760846407405,0.099,3914.7,3914.0,0.1501]
[1760846407697,0.099,3914.7,3914.0,0.15572135]
[1760846407858,0.099,3914.7,3914.0,0.528731]
[1760846408058,0.099,3914.7,3914.0,2.70497935]
[1760846408455,0.099,3914.7,3914.0,0.1501]
[1760846408701,0.099,3914.7,3914.1,2.55486498]
[1760846408996,0.2142,3914.8,3914.2,3.01798567]
[1760846409584,0.2142,3914.8,3914.3,0.6336]
[1760846409889,0.099,3915.0,3914.4,0.82835857]
[1760846410276,0.213,3915.1,3914.4,0.36515857]
[1760846410476,0.1001,3915.0,3914.0,0.1501]
[1760846410676,0.1001,3914.9,3914.0,0.1501]
[1760846410880,0.1001,3914.8,3914.0,0.1501]
[1760846411191,0.1001,3914.8,3913.6,0.4632]
[1760846411385,0.213,3915.1,3914.1,0.6336]
[1760846411386,0.1001,3915.0,3914.1,0.6336]
[1760846411587,0.1001,3915.0,3914.2,0.31885291]
[1760846411791,0.213,3915.1,3914.3,0.6336]
[1760846411998,1.728,3916.0,3914.4,0.4632]
[1760846412303,0.1013,3915.5,3914.4,0.4632]
[1760846412603,0.0513,3915.4,3914.4,3.78593168]
[1760846412808,1.728,3916.0,3914.5,0.4632]
[1760846413002,0.76023943,3915.9,3914.5,0.4632]
[1760846413303,0.1501,3916.1,3914.5,0.4632]
[1760846413483,0.1501,3916.1,3914.6,2.55453411]
[1760846413685,0.1501,3916.1,3914.7,0.4632]
[1760846414286,0.1501,3916.1,3914.8,0.02554408]
[1760846414481,0.0023,3916.0,3914.9,0.4632]
[1760846414697,0.0023,3915.9,3915.0,0.02554278]
[1760846414897,0.0023,3915.8,3915.0,0.02554278]
[1760846415095,0.0023,3915.7,3914.7,0.4632]
[1760846415407,0.0023,3915.7,3914.7,0.8443417]
[1760846415708,0.0023,3915.7,3914.8,0.02554408]
[1760846415909,0.1295,3915.7,3915.0,0.1272]
[1760846416116,0.1295,3915.7,3915.1,0.02554213]
[1760846417321,0.04452218,3915.9,3915.1,0.4632]
[1760846417492,0.0023,3915.8,3914.6,0.2256]
[1760846417810,0.04452218,3915.9,3914.8,2.5544089]
[1760846418013,0.04452218,3915.9,3914.9,0.4632]
[1760846418218,0.0023,3915.8,3914.9,0.4632]
[1760846418595,0.0023,3915.8,3915.0,0.10239882]
[1760846418780,0.04452218,3915.9,3915.0,0.1279416]
[1760846418985,0.001,3916.0,3915.1,0.4632]
[1760846419207,0.001,3916.0,3915.1,3.01739953]
[1760846419508,0.001,3916.0,3915.5,2.553919]
[1760846419714,0.001,3916.0,3915.4,0.6336]
[1760846419889,0.001,3916.0,3915.5,2.5539444]
[1760846420091,0.001,3916.0,3915.5,3.0171444]
[1760846420410,0.001,3916.0,3915.5,0.76785355]
[1760846420612,0.1509,3915.9,3915.1,0.4632]
[1760846420815,0.1509,3915.9,3915.1,0.4816]
[1760846421127,0.1509,3915.9,3915.2,0.76795576]
[1760846421480,0.1509,3915.9,3915.1,0.4816]
[1760846421908,0.1509,3915.9,3915.1,1.24955576]
[1760846422107,0.001,3916.0,3915.1,0.4816]
[1760846422108,0.1519,3915.8,3915.1,0.4816]
[1760846422310,0.0495,3915.7,3915.1,0.4816]
[1760846423483,0.1024,3915.8,3915.1,0.4816]
[1760846423799,0.001,3916.0,3915.2,0.4632]
[1760846424212,0.152,3915.9,3915.1,0.4816]
[1760846424516,0.152,3915.9,3915.1,0.9448]
[1760846424714,0.1019,3915.9,3915.1,0.9448]
[1760846424914,0.152,3915.9,3915.1,0.9448]
[1760846426613,0.1019,3915.9,3915.1,0.4816]
[1760846426801,0.0501,3915.8,3915.1,0.4816]
[1760846427315,0.1272,3915.7,3915.1,0.4816]
[1760846427985,0.1272,3915.7,3915.1,0.6088]
[1760846428190,0.1272,3915.7,3915.2,0.4632]
[1760846428686,0.1272,3915.7,3915.3,0.4632]
[1760846429196,0.1272,3915.7,3915.1,0.6088]
[1760846430417,0.1783,3915.7,3915.1,0.6088]
[1760846431015,0.1272,3915.7,3915.1,0.6088]
[1760846431315,0.0511,3915.6,3915.1,0.4816]
[1760846431485,0.0511,3915.5,3915.1,0.4816]
[1760846431687,0.1272,3915.7,3915.1,0.4816]
[1760846431887,0.0511,3915.4,3915.1,0.4816]
[1760846432089,0.1009,3915.9,3915.1,0.4816]
[1760846432295,0.1272,3915.3,3915.1,0.4816]
[1760846433917,0.0511,3915.2,3915.1,0.4816]
[1760846434623,0.09562511,3915.2,3915.1,0.4816]
[1760846434921,0.09562511,3915.2,3915.1,0.4836]
[1760846434922,0.04452511,3915.2,3915.1,0.4836]
[1760846436691,0.09562511,3915.2,3915.1,0.4836]
[1760846436897,5.055758,3915.2,3915.1,0.4836]
[1760846437323,5.45646916,3915.2,3915.1,0.4836]
[1760846438191,6.09006916,3915.2,3915.1,0.4836]
[1760846440039,2.85779612,3915.2,3915.1,0.4836]
[1760846440238,7.81402058,3915.2,3915.1,0.4836]
[1760846440811,10.36816851,3915.2,3915.1,0.4836]
[1760846441012,11.00176851,3915.2,3915.1,0.4836]
[1760846442621,8.44762058,3915.2,3915.1,0.4836]
[1760846442843,7.81402058,3915.2,3915.1,0.4836]
[1760846443214,7.85855261,3915.2,3915.1,0.4836]
[1760846444440,2.55101699,3915.2,3915.1,0.4836]
[1760846445223,5.10516492,3915.2,3915.1,0.4836]
[1760846445423,2.55101699,3915.2,3915.1,0.4836]
[1760846445646,5.10516492,3915.2,3915.1,0.4836]
[1760846446556,5.73876492,3915.2,3915.1,0.4836]
[1760846447553,6.36829217,3915.2,3915.1,0.4836]
[1760846448061,6.32376014,3915.2,3915.1,0.4836]
[1760846448358,6.32376014,3915.2,3915.1,0.002]
[1760846450154,2.55457177,3914.6,3913.6,0.4397]
[1760846450455,1.728,3913.9,3913.5,0.002]
[1760846450657,1.728,3913.9,3913.6,0.4397]
[1760846450839,1.728,3913.9,3913.7,0.4397]
[1760846451026,0.3124,3914.5,3913.5,0.002]
[1760846451230,1.728,3914.0,3913.6,0.4397]
[1760846451854,1.728,3914.0,3913.7,0.4397]
[1760846452128,1.728,3914.0,3913.8,0.4397]
[1760846452333,0.67798496,3913.9,3913.5,0.4417]
[1760846452530,0.40080592,3914.2,3913.6,0.4397]
[1760846452735,2.12880592,3914.2,3913.6,0.4397]
[1760846453345,2.12880592,3914.2,3913.6,0.4417]
[1760846453661,2.12880592,3914.2,3913.6,0.002]
[1760846453859,4.95622446,3913.9,3913.6,0.002]
[1760846454049,0.97387049,3914.1,3913.7,0.4397]
[1760846454249,1.728,3914.2,3913.7,0.4397]
[1760846454976,1.728,3914.6,3913.8,0.4397]
[1760846455134,1.728,3914.6,3914.1,0.2159]
[1760846455463,0.71295721,3914.5,3914.2,0.4397]
[1760846455762,0.71295721,3914.5,3914.1,0.2159]
[1760846457366,4.95622446,3914.3,3914.1,0.2159]
[1760846457552,0.1272,3914.1,3913.9,0.4397]
[1760846457747,0.1272,3913.9,3913.6,0.002]
[1760846457945,0.1272,3913.7,3913.6,0.002]
[1760846458549,0.1272,3913.7,3913.6,0.4417]
[1760846458744,0.1272,3913.7,3913.6,0.002]
[1760846458975,0.1272,3913.7,3913.6,0.4417]
[1760846459166,0.1272,3913.7,3913.6,0.002]
[1760846460031,0.63554245,3913.7,3913.6,0.002]
[1760846460666,0.50834245,3913.7,3913.6,0.4417]
[1760846460870,1.728,3914.1,3913.6,0.4417]
[1760846461838,1.728,3914.1,3913.7,0.4397]
[1760846462381,4.95622446,3913.8,3913.6,0.002]
[1760846462682,0.1272,3913.7,3913.6,0.002]
[1760846463242,0.1272,3913.7,3913.6,0.4417]
[1760846464284,0.1272,3913.7,3913.6,0.002]
[1760846465142,0.1272,3913.7,3913.6,0.4467]
[1760846468356,0.1272,3913.7,3913.6,0.002]
[1760846469772,0.93702618,3913.7,3913.6,0.002]
[1760846470459,1.06757385,3913.7,3913.6,0.002]
[1760846470960,0.93702618,3913.7,3913.6,0.002]
[1760846472891,0.83752618,3913.7,3913.6,0.002]
[1760846473099,1.728,3913.9,3913.6,0.002]
[1760846473573,1.7725395,3913.9,3913.6,0.002]
[1760846476604,0.0445395,3913.9,3913.6,0.002]
[1760846476809,0.0445395,3913.9,3913.6,0.4725]
[1760846476986,0.6728764,3913.8,3913.6,0.002]
[1760846477607,6.78372446,3913.7,3913.6,0.002]
[1760846478114,9.33885132,3913.7,3913.6,0.002]
[1760846478819,9.33885132,3913.7,3913.2,0.002]
[1760846478820,0.6336,3913.4,3913.2,0.002]
[1760846478990,10.36490283,3913.3,3913.2,0.002]
[1760846479321,10.46440283,3913.3,3913.2,0.002]
[1760846479481,10.46440283,3913.3,3912.6,0.002]
[1760846479482,4.91711864,3913.1,3912.6,0.002]
[1760846479882,5.01661864,3913.1,3912.6,0.002]
[1760846480880,2.3616,3913.1,3912.6,0.002]
[1760846481113,3.11558646,3913.1,3912.6,0.002]
[1760846481314,3.21508646,3913.1,3912.6,0.002]
[1760846481510,5.7706051,3913.1,3912.6,0.002]
[1760846482294,5.81516536,3913.1,3912.6,0.002]
[1760846482701,3.16014672,3913.1,3912.6,0.002]
[1760846483019,5.81516536,3913.1,3912.6,0.002]
[1760846484409,3.25964672,3913.1,3912.6,0.002]
[1760846484616,5.71566536,3913.1,3912.6,0.002]
[1760846485111,5.81516536,3913.1,3912.6,0.002]
[1760846487890,6.21614562,3913.1,3912.6,0.002]
[1760846488085,4.91724926,3912.9,3912.6,0.002]
[1760846488295,10.36516406,3912.9,3912.6,0.002]
[1760846488704,3.18937989,3912.7,3912.6,0.002]
[1760846488986,4.91737989,3912.7,3912.6,0.002]
[1760846489189,5.01687989,3912.7,3912.6,0.002]
[1760846489404,5.46245723,3912.7,3912.6,0.002]
[1760846489605,6.21644369,3912.7,3912.6,0.002]
[1760846490607,6.17187891,3912.7,3912.6,0.002]
[1760846490893,6.07237891,3912.7,3912.6,0.002]
[1760846491098,0.6336,3912.5,3911.4,0.4705]
[1760846491301,1.728,3911.6,3911.4,0.4705]
[1760846491625,1.728,3911.6,3911.5,0.4705]
[1760846493018,1.728,3911.6,3911.1,0.002]
[1760846493244,1.728,3911.6,3911.2,0.4705]
[1760846493821,1.728,3911.6,3911.1,0.002]
[1760846494148,0.0445709,3911.6,3911.2,0.4705]
[1760846494313,0.1272,3911.3,3911.2,0.4705]
[1760846497135,0.1272,3911.5,3911.2,0.4705]
[1760846498519,0.1272,3911.5,3911.3,0.30293619]
[1760846499055,0.1272,3911.5,3911.4,0.4709]
[1760846500135,0.6336,3912.8,3911.4,0.4709]
[1760846500334,0.1272,3911.7,3911.4,0.4709]
[1760846500914,0.1272,3911.7,3911.5,0.4709]
[1760846501113,0.1272,3911.7,3911.6,0.4709]
[1760846503027,1.728,3911.8,3911.1,0.002]
[1760846503219,0.66842245,3911.7,3911.1,0.4729]
[1760846503423,1.728,3911.8,3911.1,0.4729]
[1760846505155,0.04456484,3912.4,3911.1,0.002]
[1760846505156,1.728,3911.4,3911.1,0.002]
[1760846506122,1.77257192,3911.4,3911.1,0.002]
[1760846506522,0.04457192,3911.4,3911.1,0.002]
[1760846507924,0.04457192,3911.4,3911.2,0.4709]
[1760846508153,0.04457192,3911.4,3911.1,0.2274]
[1760846508351,0.75755881,3911.4,3911.1,0.002]
[1760846508648,0.85705881,3911.4,3911.1,0.002]
[1760846509566,0.0995,3911.3,3911.1,0.002]
[1760846509855,6.68422446,3911.2,3911.1,0.002]
[1760846510043,6.78372446,3911.2,3911.1,0.002]
[1760846510246,7.31641437,3911.2,3911.1,0.002]
[1760846510428,2.26068991,3911.2,3911.1,0.002]
[1760846511228,2.99378991,3911.2,3911.1,0.002]
[1760846511556,2.26068991,3911.2,3911.1,0.002]
[1760846512061,2.36018991,3911.2,3911.1,0.002]
[1760846513955,2.26068991,3911.2,3911.1,0.002]
[1760846515154,2.36018991,3911.2,3911.1,0.002]
[1760846515325,2.40476489,3911.2,3911.1,0.002]
[1760846516673,2.30526489,3911.2,3911.1,0.002]
[1760846517661,2.40476489,3911.2,3911.1,0.002]
[1760846517866,3.03836489,3911.2,3911.1,0.002]
[1760846518070,5.59512496,3911.2,3911.1,0.002]
[1760846518273,3.03836489,3911.2,3911.1,0.002]
[1760846518471,2.93886489,3911.2,3911.1,0.002]
[1760846521268,3.03836489,3911.2,3911.1,0.002]
[1760846521656,2.93886489,3911.2,3911.1,0.002]
[1760846521976,2.30526489,3911.2,3911.1,0.002]
[1760846523478,1.77257498,3911.2,3911.1,0.002]
[1760846523699,0.04457498,3911.2,3911.1,0.6983]
[1760846524152,1.728,3911.5,3911.1,0.6983]
[1760846524549,1.728,3911.5,3911.2,0.4445]
[1760846524750,1.728,3911.5,3911.3,0.4445]
[1760846524981,1.728,3911.5,3911.4,0.4445]
[1760846527777,1.728,3911.5,3911.1,0.6983]
[1760846527952,1.728,3911.5,3911.2,0.4709]
[1760846528152,1.728,3911.5,3911.3,0.4709]
[1760846534579,1.77257084,3911.5,3911.3,0.4709]
[1760846535573,1.77257084,3911.5,3911.1,0.2274]
[1760846535783,1.77257084,3911.5,3911.2,0.4709]
[1760846537381,1.77257084,3911.5,3911.1,0.2274]
[1760846537583,6.68422446,3911.2,3911.1,0.002]
[1760846537797,1.728,3911.2,3911.1,0.002]
[1760846538103,1.728,3911.2,3911.1,0.6961]
[1760846539616,4.95622446,3912.0,3911.1,0.6961]
[1760846539831,1.728,3911.9,3911.2,0.4709]
[1760846542079,0.04456883,3911.8,3911.2,0.4709]
[1760846542275,1.728,3911.9,3911.2,0.4709]
[1760846542474,2.39642245,3911.9,3911.2,0.4709]
[1760846543506,0.0995,3911.8,3911.1,0.2252]
[1760846543707,0.0995,3911.8,3911.1,0.002]
[1760846544219,1.728,3911.5,3911.1,0.002]
[1760846544703,1.8275,3911.5,3911.1,0.002]
[1760846544904,0.57725435,3911.4,3911.1,0.002]
[1760846545506,0.67675435,3911.4,3911.1,0.002]
[1760846545808,6.68422446,3911.2,3911.1,0.002]
[1760846546223,6.78372446,3911.2,3911.1,0.002]
[1760846546579,6.68422446,3911.2,3911.1,0.002]
[1760846546782,7.35264691,3911.2,3911.1,0.002]
[1760846548121,7.45214691,3911.2,3911.1,0.002]
[1760846548321,7.35264691,3911.2,3911.1,0.002]
[1760846550134,7.45214691,3911.2,3911.1,0.002]
[1760846553217,7.35264691,3911.2,3911.1,0.002]
[1760846554141,2.39642245,3911.2,3911.1,0.4729]
[1760846554643,2.44099725,3911.2,3911.1,0.002]
[1760846555252,1.7725748,3911.2,3911.1,0.6831]
[1760846556534,0.0445748,3911.2,3911.1,0.6831]
[1760846558028,0.1272,3911.6,3911.1,0.6831]
[1760846558229,0.1272,3911.6,3911.2,0.4467]
[1760846562359,0.1272,3911.6,3911.2,0.4467]
[1760846562731,0.1272,3911.6,3911.1,0.2364]
[1760846563041,0.1272,3911.6,3911.1,0.002]
[1760846563042,0.0995,3911.5,3911.1,0.002]
[1760846563242,0.67837245,3911.4,3911.1,0.002]
[1760846563767,1.728,3911.6,3911.1,0.002]
[1760846564146,1.8275,3911.6,3911.1,0.002]
[1760846564336,0.0995,3911.5,3911.1,0.002]
[1760846564736,0.1272,3911.1,3910.7,0.002]
[1760846565963,0.1272,3910.8,3910.7,0.002]
[1760846566337,1.728,3911.8,3910.7,0.4487]
[1760846566539,0.66842245,3911.7,3910.7,0.4487]
[1760846566978,0.81342245,3911.7,3910.7,0.4487]
[1760846567148,4.95622446,3911.5,3910.7,0.002]
[1760846567483,0.145,3911.6,3910.7,0.002]
[1760846567484,1.728,3911.0,3910.7,0.002]
[1760846567768,0.2116,3910.8,3910.7,0.002]
[1760846567986,1.728,3911.0,3910.7,0.002]
[1760846568184,0.57725435,3911.0,3910.7,0.002]
[1760846568965,0.62182852,3911.0,3910.7,0.002]
[1760846569470,0.57725435,3911.0,3910.7,0.002]
[1760846570785,0.57725435,3911.0,3910.7,0.4487]
[1760846570985,1.728,3911.2,3910.7,0.4487]
[1760846571478,1.728,3911.2,3910.7,0.002]
[1760846571882,0.1212,3911.1,3910.7,0.002]
[1760846572383,0.1212,3911.0,3910.7,0.002]
[1760846572989,0.04457361,3911.1,3910.7,0.002]
[1760846573579,0.04457361,3911.1,3910.8,0.4467]
[1760846573956,1.728,3911.6,3910.8,0.4467]
[1760846574151,0.74405225,3911.5,3910.8,0.4467]
[1760846574355,0.74405225,3911.5,3910.7,0.002]
[1760846574791,0.74405225,3911.5,3910.8,0.4467]
[1760846575557,2.47205225,3911.5,3910.7,0.4487]